fUSD/lending_fUSD_20240712
["ID","MTS","AMOUNT","RATE_DAILY","PERIOD"]
[331857698,1720794714785,-500.0,0.0001441,2]
[331857699,1720794714795,-500.0,0.0001441,2]
[331857700,1720794714804,-500.0,0.0001441,2]
[331857701,1720794714813,-266.51017454,0.0001441,2]
[331857702,1720794714822,-500.0,0.0001441,2]
[331857703,1720794714832,-500.0,0.0001441,2]
[331857704,1720794714841,-500.0,0.0001441,2]
[331857705,1720794714850,-500.0,0.0001441,2]
[331857706,1720794714860,-743.72,0.0001441,2]
[331857707,1720794714869,-500.0,0.0001441,2]
[331857708,1720794714879,-306.02194001,0.0001441,2]
[331857709,1720794714889,-500.0,0.0001441,2]
[331857710,1720794714898,-257.22372594,0.0001441,2]
[331857711,1720794714907,-500.0,0.0001441,2]
[331857712,1720794714917,-500.0,0.0001441,2]
[331857713,1720794714927,-586.38,0.0001441,2]
[331857714,1720794714937,-500.0,0.0001441,2]
[331857715,1720794714947,-608.66,0.0001441,2]
[331857716,1720794714956,-500.0,0.0001441,2]
[331857717,1720794714965,-500.0,0.0001441,2]
[331857718,1720794714975,-819.14,0.0001441,2]
[331857719,1720794714986,-500.0,0.0001441,2]
[331857720,1720794714995,-806.25,0.0001441,2]
[331857721,1720794715005,-785.46,0.0001441,2]
[331857722,1720794715014,-506.96,0.0001441,2]
[331857723,1720794715024,-500.0,0.0001441,2]
[331857724,1720794715033,-523.01,0.0001441,2]
[331857725,1720794715042,-532.23,0.0001441,2]
[331857726,1720794715051,-467.70102327,0.0001441,2]
[331857727,1720794715061,-500.0,0.0001441,2]
[331857728,1720794715071,-659.11,0.0001441,2]
[331857729,1720794715080,-500.0,0.0001441,2]
[331857730,1720794715094,-928.6,0.0001441,2]
[331857731,1720794715103,-500.0,0.0001441,2]
[331857732,1720794715112,-500.0,0.0001441,2]
[331857733,1720794715121,-857.04,0.0001441,2]
[331857734,1720794715133,-500.0,0.0001441,2]
[331857735,1720794715142,-536.84,0.0001441,2]
[331857736,1720794715152,-1012.71,0.0001441,2]
[331857737,1720794715163,-500.0,0.0001441,2]
[331857738,1720794715173,-500.0,0.0001441,2]
[331857739,1720794715183,-787.1,0.0001441,2]
[331857740,1720794715192,-500.0,0.0001441,2]
[331857741,1720794715202,-460.9925071,0.0001441,2]
[331857742,1720794715211,-599.51679835,0.0001441,2]
[331857743,1720794715220,-500.0,0.0001441,2]
[331857744,1720794715230,-880.19,0.0001441,2]
[331857745,1720794715240,-545.56,0.0001441,2]
[331857746,1720794715249,-500.0,0.0001441,2]
[331857747,1720794715259,-714.66,0.0001441,2]
[331857748,1720794715268,-500.0,0.0001441,2]
[331857749,1720794715277,-691.25,0.0001441,2]
[331857750,1720794715287,-500.0,0.0001441,2]
[331857751,1720794715297,-710.01,0.0001441,2]
[331857752,1720794715306,-633.29,0.0001441,2]
[331857753,1720794715316,-870.72,0.0001441,2]
[331857754,1720794715325,-728.52,0.0001441,2]
[331857755,1720794715335,-669.08,0.0001441,2]
[331857756,1720794715345,-500.0,0.0001441,2]
[331857757,1720794715355,-500.0,0.0001441,2]
[331857758,1720794715364,-500.0,0.0001441,2]
[331857759,1720794715374,-500.0,0.0001441,2]
[331857760,1720794715384,-718.04,0.0001441,2]
[331857761,1720794715393,-500.0,0.0001441,2]
[331857762,1720794715402,-500.0,0.0001441,2]
[331857763,1720794715411,-500.0,0.0001441,2]
[331857764,1720794715421,-500.0,0.0001441,2]
[331857765,1720794715430,-500.0,0.0001441,2]
[331857766,1720794715438,-662.74,0.0001441,2]
[331857767,1720794715449,-605.31,0.0001441,2]
[331857768,1720794715458,-612.82,0.0001441,2]
[331857769,1720794715467,-564.04,0.0001441,2]
[331857770,1720794715477,-840.15,0.0001441,2]
[331857771,1720794715487,-500.0,0.0001441,2]
[331857772,1720794715496,-976.09,0.0001441,2]
[331857773,1720794715505,-883.19,0.0001441,2]
[331857774,1720794715514,-177.77460295,0.0001441,2]
[331857775,1720794715523,-518.94,0.0001441,2]
[331857776,1720794715532,-804.2,0.0001441,2]
[331857777,1720794715541,-500.0,0.0001441,2]
[331857778,1720794715550,-861.95,0.0001441,2]
[331857779,1720794715560,-642.51,0.0001441,2]
[331857780,1720794715569,-507.10152359,0.0001441,2]
[331857781,1720794715579,-695.85,0.0001441,2]
[331857782,1720794715588,-595.38,0.0001441,2]
[331857783,1720794715598,-947.63,0.0001441,2]
[331857784,1720794715607,-500.0,0.0001441,2]
[331857785,1720794715617,-500.0,0.0001441,2]
[331857786,1720794715626,-500.0,0.0001441,2]
[331857787,1720794715635,-505.8,0.0001441,2]
[331857788,1720794715645,-594.81,0.0001441,2]
[331857789,1720794715654,-1155.19,0.0001441,2]
[331857790,1720794715663,-544.81,0.0001441,2]
[331857791,1720794715673,-500.0,0.0001441,2]
[331857792,1720794715682,-666.06,0.0001441,2]
[331857793,1720794715691,-500.0,0.0001441,2]
[331857794,1720794715700,-500.0,0.0001441,2]
[331857795,1720794715710,-500.0,0.0001441,2]
[331857796,1720794715720,-574.05,0.0001441,2]
[331857797,1720794715731,-713.58,0.0001441,2]
[331857798,1720794715741,-523.05,0.0001441,2]
[331857799,1720794715750,-563.94,0.0001441,2]
[331857800,1720794715760,-500.0,0.0001441,2]
[331857801,1720794715769,-500.0,0.0001441,2]
[331857802,1720794715779,-500.0,0.0001441,2]
[331857803,1720794715788,-520.25,0.0001441,2]
[331857804,1720794715798,-712.83,0.0001441,2]
[331857805,1720794715807,-821.92,0.0001441,2]
[331857806,1720794715817,-1374.04,0.0001441,2]
[331857807,1720794715827,-687.92,0.0001441,2]
[331857808,1720794715836,-883.42,0.0001441,2]
[331857809,1720794715845,-517.54,0.0001441,2]
[331857810,1720794715854,-667.83,0.0001441,2]
[331857811,1720794715864,-613.53738131,0.0001441,2]
[331857812,1720794715873,-500.0,0.0001441,2]
[331857813,1720794715882,-1125.56,0.0001441,2]
[331857814,1720794715892,-804.76,0.0001441,2]
[331857815,1720794715902,-861.99,0.0001441,2]
[331857816,1720794715911,-500.0,0.0001441,2]
[331857817,1720794715921,-1018.26,0.0001441,2]
[331857818,1720794715930,-833.97,0.0001441,2]
[331857819,1720794715940,-570.65,0.0001441,2]
[331857820,1720794715950,-582.03,0.0001441,2]
[331857821,1720794715959,-1246.88,0.0001441,2]
[331857822,1720794715968,-453.93,0.0001441,2]
[331857823,1720794715978,-500.0,0.0001441,2]
[331857824,1720794715988,-506.37,0.0001441,2]
[331857825,1720794715997,-637.82727121,0.0001441,2]
[331857826,1720794716006,-276.92,0.0001441,2]
[331857827,1720794716015,-743.04,0.0001441,2]
[331857828,1720794716024,-500.0,0.0001441,2]
[331857829,1720794716034,-627.82,0.0001441,2]
[331857830,1720794716043,-500.0,0.0001441,2]
[331857831,1720794716052,-789.19,0.0001441,2]
[331857832,1720794716061,-564.93,0.0001441,2]
[331857833,1720794716071,-500.0,0.0001441,2]
[331857834,1720794716081,-872.58,0.0001441,2]
[331857835,1720794716096,-500.0,0.0001441,2]
[331857836,1720794716105,-500.0,0.0001441,2]
[331857837,1720794716115,-631.32,0.0001441,2]
[331857838,1720794716124,-500.0,0.0001441,2]
[331857839,1720794716134,-1303.41,0.0001441,2]
[331857840,1720794716144,-987.74,0.0001441,2]
[331857841,1720794716154,-1057.82,0.0001441,2]
[331857842,1720794716163,-500.0,0.0001441,2]
[331857843,1720794716175,-500.0,0.0001441,2]
[331857844,1720794716186,-741.61,0.0001441,2]
[331857845,1720794716195,-500.0,0.0001441,2]
[331857846,1720794716204,-500.0,0.0001441,2]
[331857847,1720794716213,-759.54,0.0001441,2]
[331857848,1720794716223,-675.64,0.0001441,2]
[331857849,1720794716233,-546.31,0.0001441,2]
[331857850,1720794716243,-1372.87,0.0001441,2]
[331857851,1720794716252,-500.0,0.0001441,2]
[331857852,1720794716261,-500.0,0.0001441,2]
[331857853,1720794716271,-500.0,0.0001441,2]
[331857854,1720794716280,-507.78,0.0001441,2]
[331857855,1720794716289,-500.0,0.0001441,2]
[331857856,1720794716299,-851.8,0.0001441,2]
[331857857,1720794716308,-500.0,0.0001441,2]
[331857858,1720794716318,-1083.36,0.0001441,2]
[331857859,1720794716328,-177.35376479,0.0001441,2]
[331857860,1720794716339,-646.31,0.0001441,2]
[331857861,1720794716348,-500.0,0.0001441,2]
[331857862,1720794716358,-519.29,0.0001441,2]
[331857863,1720794716367,-500.0,0.0001441,2]
[331857864,1720794716377,-733.47,0.0001441,2]
[331857865,1720794716386,-500.0,0.0001441,2]
[331857866,1720794716395,-500.0,0.0001441,2]
[331857867,1720794716404,-628.29,0.0001441,2]
[331857868,1720794716414,-500.0,0.0001441,2]
[331857869,1720794716423,-500.0,0.0001441,2]
[331857870,1720794716432,-500.0,0.0001441,2]
[331857871,1720794716441,-1269.7,0.0001441,2]
[331857872,1720794716451,-500.0,0.0001441,2]
[331857873,1720794716460,-1162.35,0.0001441,2]
[331857874,1720794716469,-500.0,0.0001441,2]
[331857875,1720794716479,-1140.36,0.0001441,2]
[331857876,1720794716490,-988.4,0.0001441,2]
[331857877,1720794716499,-559.09,0.0001441,2]
[331857878,1720794716509,-582.01,0.0001441,2]
[331857879,1720794716518,-1188.5,0.0001441,2]
[331857880,1720794716528,-742.99,0.0001441,2]
[331857881,1720794716538,-500.0,0.0001441,2]
[331857882,1720794716547,-500.0,0.0001441,2]
[331857883,1720794716556,-641.89,0.0001441,2]
[331857884,1720794716566,-500.0,0.0001441,2]
[331857885,1720794716575,-782.48,0.0001441,2]
[331857886,1720794716585,-500.0,0.0001441,2]
[331857887,1720794716595,-500.0,0.0001441,2]
[331857888,1720794716605,-500.0,0.0001441,2]
[331857889,1720794716615,-648.56,0.0001441,2]
[331857890,1720794716625,-500.0,0.0001441,2]
[331857891,1720794716635,-621.66,0.0001441,2]
[331857892,1720794716645,-837.4,0.0001441,2]
[331857893,1720794716654,-577.19,0.0001441,2]
[331857894,1720794716664,-500.0,0.0001441,2]
[331857895,1720794716674,-1217.56,0.0001441,2]
[331857896,1720794716684,-500.0,0.0001441,2]
[331857897,1720794716694,-819.84,0.0001441,2]
[331857898,1720794716703,-560.07,0.0001441,2]
[331857899,1720794716713,-500.0,0.0001441,2]
[331857900,1720794716723,-1091.77,0.0001441,2]
[331857901,1720794716735,-427.39,0.0001441,2]
[331857902,1720794716747,-1064.23,0.0001441,2]
[331857903,1720794716756,-500.0,0.0001441,2]
[331857904,1720794716766,-4271.54,0.0001441,2]
[331857905,1720794716776,-500.0,0.0001441,2]
[331857906,1720794716909,-500.0,0.0001441,2]
[331857907,1720794716919,-1838.14,0.0001441,2]
[331857908,1720794716929,-989.52,0.0001441,2]
[331857909,1720794716940,-500.0,0.0001441,2]
[331857910,1720794716950,-500.0,0.0001441,2]
[331857911,1720794716959,-500.0,0.0001441,2]
[331857912,1720794716970,-1038.55,0.0001441,2]
[331857913,1720794716979,-835.73,0.0001441,2]
[331857914,1720794716991,-500.0,0.0001441,2]
[331857915,1720794717002,-720.1,0.0001441,2]
[331857916,1720794717012,-903.17,0.0001441,2]
[331857917,1720794717022,-948.98,0.0001441,2]
[331857918,1720794717032,-852.64,0.0001441,2]
[331857919,1720794717042,-500.0,0.0001441,2]
[331857920,1720794717052,-540.42,0.0001441,2]
[331857921,1720794717061,-2299.04,0.0001441,2]
[331857922,1720794717071,-1111.09,0.0001441,2]
[331857923,1720794717082,-847.27,0.0001441,2]
[331857924,1720794717097,-596.57855723,0.0001441,2]
[331857925,1720794717106,-563.5,0.0001441,2]
[331857926,1720794717115,-1080.3,0.0001441,2]
[331857927,1720794717125,-500.0,0.0001441,2]
[331857928,1720794717135,-792.46,0.0001441,2]
[331857929,1720794717144,-1087.76,0.0001441,2]
[331857930,1720794717154,-777.64,0.0001441,2]
[331857931,1720794717165,-500.0,0.0001441,2]
[331857932,1720794717175,-500.0,0.0001441,2]
[331857933,1720794717184,-859.86,0.0001441,2]
[331857934,1720794717194,-595.98,0.0001441,2]
[331857935,1720794717204,-500.0,0.0001441,2]
[331857936,1720794717213,-966.7,0.0001441,2]
[331857937,1720794717223,-558.7,0.0001441,2]
[331857938,1720794717232,-770.6,0.0001441,2]
[331857939,1720794717242,-500.0,0.0001441,2]
[331857940,1720794717252,-500.0,0.0001441,2]
[331857941,1720794717263,-1183.71,0.0001441,2]
[331857942,1720794717272,-1004.68,0.0001441,2]
[331857943,1720794717282,-500.0,0.0001441,2]
[331857944,1720794717292,-381.11181865,0.0001441,2]
[331857945,1720794717302,-1241.85,0.0001441,2]
[331857946,1720794717311,-955.42,0.0001441,2]
[331857947,1720794717321,-1077.37,0.0001441,2]
[331857948,1720794717331,-500.0,0.0001441,2]
[331857949,1720794717341,-500.0,0.0001441,2]
[331857950,1720794717351,-529.33305141,0.0001441,2]
[331857951,1720794717361,-1386.2,0.0001441,2]
[331857952,1720794717371,-500.0,0.0001441,2]
[331857953,1720794717380,-500.0,0.0001441,2]
[331857954,1720794717390,-581.34,0.0001441,2]
[331857955,1720794717399,-500.0,0.0001441,2]
[331857956,1720794717409,-1428.78,0.0001441,2]
[331857957,1720794717418,-533.16,0.0001441,2]
[331857958,1720794717428,-742.08,0.0001441,2]
[331857959,1720794717438,-500.0,0.0001441,2]
[331857960,1720794717447,-1248.36,0.0001441,2]
[331857961,1720794717457,-1524.13,0.0001441,2]
[331857962,1720794717466,-500.0,0.0001441,2]
[331857963,1720794717475,-1206.67,0.0001441,2]
[331857964,1720794717486,-500.0,0.0001441,2]
[331857965,1720794717496,-765.74,0.0001441,2]
[331857966,1720794717506,-654.42,0.0001441,2]
[331857967,1720794717516,-500.0,0.0001441,2]
[331857968,1720794717525,-1158.32,0.0001441,2]
[331857969,1720794717535,-500.0,0.0001441,2]
[331857970,1720794717545,-500.0,0.0001441,2]
[331857971,1720794717554,-517.72,0.0001441,2]
[331857972,1720794717564,-985.8,0.0001441,2]
[331857973,1720794717574,-1158.97,0.0001441,2]
[331857974,1720794717583,-1303.35,0.0001441,2]
[331857975,1720794717593,-642.75,0.0001441,2]
[331857976,1720794717603,-500.0,0.0001441,2]
[331857977,1720794717612,-500.0,0.0001441,2]
[331857978,1720794717622,-500.0,0.0001441,2]
[331857979,1720794717631,-500.0,0.0001441,2]
[331857980,1720794717641,-675.59,0.0001441,2]
[331857981,1720794717651,-500.0,0.0001441,2]
[331857982,1720794717661,-500.0,0.0001441,2]
[331857983,1720794717671,-566.18,0.0001441,2]
[331857984,1720794717681,-1174.91,0.0001441,2]
[331857985,1720794717690,-167.22354371,0.0001441,2]
[331857986,1720794717699,-502.48,0.0001441,2]
[331857987,1720794717709,-953.14,0.0001441,2]
[331857988,1720794717719,-712.64,0.0001441,2]
[331857989,1720794717729,-839.78,0.0001441,2]
[331857990,1720794717740,-1198.74,0.0001441,2]
[331857991,1720794717749,-504.32,0.0001441,2]
[331857992,1720794717759,-500.0,0.0001441,2]
[331857993,1720794717769,-500.0,0.0001441,2]
[331857994,1720794717778,-500.0,0.0001441,2]
[331857995,1720794717788,-1168.03,0.0001441,2]
[331857996,1720794717799,-1010.06,0.0001441,2]
[331857997,1720794717808,-642.47,0.0001441,2]
[331857998,1720794717818,-500.0,0.0001441,2]
[331857999,1720794717828,-551.78,0.0001441,2]
[331858000,1720794717838,-748.91,0.0001441,2]
[331858001,1720794717848,-523.44,0.0001441,2]
[331858002,1720794717858,-500.0,0.0001441,2]
[331858003,1720794717867,-500.0,0.0001441,2]
[331858004,1720794717877,-822.71,0.0001441,2]
[331858005,1720794717887,-500.0,0.0001441,2]
[331858006,1720794717897,-500.0,0.0001441,2]
[331858007,1720794717912,-697.55,0.0001441,2]
[331858008,1720794717932,-500.0,0.0001441,2]
[331858009,1720794717948,-500.0,0.0001441,2]
[331858010,1720794717968,-258.15254213,0.0001441,2]
[331858011,1720794717987,-500.0,0.0001441,2]
[331858012,1720794718005,-712.55,0.0001441,2]
[331858013,1720794718023,-491.45308466,0.0001441,2]
[331858014,1720794718038,-1375.16,0.0001441,2]
[331858015,1720794718055,-500.0,0.0001441,2]
[331858016,1720794718075,-894.92,0.0001441,2]
[331858017,1720794718092,-1385.78,0.0001441,2]
[331858018,1720794718107,-1435.7,0.0001441,2]
[331858019,1720794718124,-500.0,0.0001441,2]
[331858020,1720794718141,-500.0,0.0001441,2]
[331858021,1720794718156,-500.0,0.0001441,2]
[331858022,1720794718172,-500.0,0.0001441,2]
[331858023,1720794718188,-768.75,0.0001441,2]
[331858024,1720794718203,-716.79,0.0001441,2]
[331858025,1720794718217,-630.92,0.0001441,2]
[331858026,1720794718234,-1100.08,0.0001441,2]
[331858027,1720794718250,-675.75,0.0001441,2]
[331858028,1720794718265,-566.06,0.0001441,2]
[331858029,1720794718281,-1310.79,0.0001441,2]
[331858030,1720794718296,-500.0,0.0001441,2]
[331858031,1720794718313,-500.0,0.0001441,2]
[331858032,1720794718328,-500.0,0.0001441,2]
[331858033,1720794718345,-749.37,0.0001441,2]
[331858034,1720794718361,-1202.91,0.0001441,2]
[331858035,1720794718376,-557.9,0.0001441,2]
[331858036,1720794718391,-511.15,0.0001441,2]
[331858037,1720794718407,-2219.16,0.0001441,2]
[331858038,1720794718422,-589.09,0.0001441,2]
[331858039,1720794718437,-1072.56,0.0001441,2]
[331858040,1720794718452,-500.0,0.0001441,2]
[331858041,1720794718467,-500.0,0.0001441,2]
[331858042,1720794718483,-500.0,0.0001441,2]
[331858043,1720794718499,-6883.09,0.0001441,2]
[331858044,1720794718514,-1509.04,0.0001441,2]
[331858045,1720794718528,-1321.77,0.0001441,2]
[331858046,1720794718543,-636.44,0.0001441,2]
[331858047,1720794718558,-500.0,0.0001441,2]
[331858048,1720794718573,-500.0,0.0001441,2]
[331858049,1720794718589,-500.0,0.0001441,2]
[331858050,1720794718602,-182.88,0.0001441,2]
[331858051,1720794718618,-500.0,0.00014412,2]
[331858052,1720794718632,-500.0,0.00014414,2]
[331858053,1720794718647,-500.0,0.00014421,2]
[331858054,1720794718661,-500.0,0.00014423,2]
[331858055,1720794718676,-153.372995,0.00014428,2]
[331858056,1720794718690,-153.372995,0.00014428,2]
[331858057,1720794718705,-545.291288,0.00014428,2]
[331858058,1720794718720,-281.988154,0.00014428,2]
[331858059,1720794718734,-260.13008,0.00014428,2]
[331858060,1720794718749,-173.531171,0.00014428,2]
[331858061,1720794718763,-481.79788,0.00014428,2]
[331858062,1720794718778,-160.599293,0.00014428,2]
[331858063,1720794718793,-500.0,0.0001443,2]
[331858064,1720794718808,-500.0,0.00014432,2]
[331858065,1720794718823,-500.0,0.00014439,2]
[331858066,1720794718838,-500.0,0.00014441,2]
[331858067,1720794718852,-500.0,0.00014447,2]
[331858068,1720794718866,-500.0,0.0001445,2]
[331858069,1720794718881,-687.8759252,0.00014455,2]
[331858070,1720794718896,-3353.637804,0.00014455,2]
[331858071,1720794718910,-58000.0,0.00014456,2]
[331858072,1720794718925,-500.0,0.00014456,2]
[331858073,1720794718940,-500.0,0.00014456,2]
[331858074,1720794718955,-500.0,0.00014458,2]
[331858075,1720794718969,-5800.0,0.00014461,2]
[331858076,1720794718984,-500.0,0.00014464,2]
[331858077,1720794718998,-531.42,0.00014464,2]
[331858078,1720794719015,-588.13,0.00014464,2]
[331858079,1720794719031,-500.0,0.00014464,2]
[331858080,1720794719045,-624.05,0.00014464,2]
[331858081,1720794719058,-500.0,0.00014464,2]
[331858082,1720794719073,-639.31,0.00014464,2]
[331858083,1720794719091,-500.0,0.00014464,2]
[331858084,1720794719106,-500.0,0.00014464,2]
[331858085,1720794719121,-634.55,0.00014464,2]
[331858086,1720794719136,-677.95,0.00014464,2]
[331858087,1720794719150,-500.0,0.00014464,2]
[331858088,1720794719168,-500.0,0.00014464,2]
[331858089,1720794719183,-500.0,0.00014464,2]
[331858090,1720794719198,-557.41338034,0.00014464,2]
[331858091,1720794719213,-500.0,0.00014464,2]
[331858092,1720794719228,-586.38,0.00014464,2]
[331858093,1720794719244,-500.0,0.00014464,2]
[331858094,1720794719259,-500.0,0.00014464,2]
[331858095,1720794719274,-819.14,0.00014464,2]
[331858096,1720794719289,-806.25,0.00014464,2]
[331858097,1720794719303,-500.0,0.00014464,2]
[331858098,1720794719318,-500.0,0.00014464,2]
[331858099,1720794719333,-500.0,0.00014464,2]
[331858100,1720794719349,-500.0,0.00014464,2]
[331858101,1720794719364,-500.0,0.00014464,2]
[331858102,1720794719380,-691.25,0.00014464,2]
[331858103,1720794719395,-710.01,0.00014464,2]
[331858104,1720794719411,-870.72,0.00014464,2]
[331858105,1720794719599,-500.0,0.00014464,2]
[331858106,1720794719621,-500.0,0.00014464,2]
[331858107,1720794719633,-500.0,0.00014464,2]
[331858108,1720794719643,-500.0,0.00014464,2]
[331858109,1720794719653,-500.0,0.00014464,2]
[331858110,1720794719663,-500.0,0.00014464,2]
[331858111,1720794719672,-570.65,0.00014464,2]
[331858112,1720794719682,-582.03,0.00014464,2]
[331858113,1720794719691,-506.37,0.00014464,2]
[331858114,1720794719701,-500.0,0.00014464,2]
[331858115,1720794719711,-500.0,0.00014464,2]
[331858116,1720794719721,-500.0,0.00014464,2]
[331858117,1720794719732,-500.0,0.00014464,2]
[331858118,1720794719742,-500.0,0.00014464,2]
[331858119,1720794719752,-500.0,0.00014464,2]
[331858120,1720794719762,-500.0,0.00014464,2]
[331858121,1720794719772,-646.31,0.00014464,2]
[331858122,1720794719782,-500.0,0.00014464,2]
[331858123,1720794719791,-500.0,0.00014464,2]
[331858124,1720794719801,-500.0,0.00014464,2]
[331858125,1720794719810,-559.09,0.00014464,2]
[331858126,1720794719820,-500.0,0.00014464,2]
[331858127,1720794719830,-577.19,0.00014464,2]
[331858128,1720794719839,-560.07,0.00014464,2]
[331858129,1720794719849,-1091.77,0.00014464,2]
[331858130,1720794719859,-500.0,0.00014464,2]
[331858131,1720794719869,-343.34770885,0.00014464,2]
[331858132,1720794719879,-500.0,0.00014464,2]
[331858133,1720794719888,-500.0,0.00014464,2]
[331858134,1720794719898,-558.7,0.00014464,2]
[331858135,1720794719908,-247.66100128,0.00014464,2]
[331858136,1720794719918,-389.39830576,0.00014464,2]
[331858137,1720794719928,-500.0,0.00014464,2]
[331858138,1720794719938,-476.43960133,0.00014464,2]
[331858139,1720794719948,-500.0,0.00014464,2]
[331858140,1720794719958,-500.0,0.00014464,2]
[331858141,1720794719968,-500.0,0.00014464,2]
[331858142,1720794719978,-566.18,0.00014464,2]
[331858143,1720794719991,-500.0,0.00014464,2]
[331858144,1720794720001,-500.0,0.00014464,2]
[331858145,1720794720012,-557.9,0.00014464,2]
[331858146,1720794720022,-500.0,0.00014464,2]
[331858147,1720794720032,-11692.68830899,0.00014465,2]
[331858148,1720794720041,-58000.0,0.00014465,2]
[331858149,1720794720051,-28825.85737577,0.00014465,2]
[331858150,1720794720061,-500.0,0.00014465,2]
[331858151,1720794720070,-500.0,0.00014465,2]
[331858152,1720794720080,-524.11,0.00014465,2]
[331858153,1720794720093,-798.11,0.00014465,2]
[331858154,1720794720103,-512.02755315,0.00014465,2]
[331858155,1720794720112,-543.87,0.00014465,2]
[331858156,1720794720122,-500.0,0.00014465,2]
[331858157,1720794720133,-714.43,0.00014465,2]
[331858158,1720794720142,-717.24,0.00014465,2]
[331858159,1720794720152,-500.0,0.00014465,2]
[331858160,1720794720162,-808.16,0.00014465,2]
[331858161,1720794720175,-574.63,0.00014465,2]
[331858162,1720794720185,-625.21,0.00014465,2]
[331858163,1720794720194,-945.63,0.00014465,2]
[331858164,1720794720204,-500.0,0.00014465,2]
[331858165,1720794720213,-500.0,0.00014465,2]
[331858166,1720794720223,-500.0,0.00014465,2]
[331858167,1720794720234,-677.22,0.00014465,2]
[331858168,1720794720243,-500.0,0.00014465,2]
[331858169,1720794720253,-174.47815865,0.00014465,2]
[331858170,1720794720262,-567.5,0.00014465,2]
[331858171,1720794720273,-799.61,0.00014465,2]
[331858172,1720794720282,-634.59285419,0.00014465,2]
[331858173,1720794720291,-500.0,0.00014465,2]
[331858174,1720794720301,-500.0,0.00014465,2]
[331858175,1720794720310,-500.0,0.00014465,2]
[331858176,1720794720319,-743.72,0.00014465,2]
[331858177,1720794720329,-500.0,0.00014465,2]
[331858178,1720794720338,-500.0,0.00014465,2]
[331858179,1720794720347,-608.66,0.00014465,2]
[331858180,1720794720357,-500.0,0.00014465,2]
[331858181,1720794720368,-500.0,0.00014465,2]
[331858182,1720794720377,-785.46,0.00014465,2]
[331858183,1720794720387,-506.96,0.00014465,2]
[331858184,1720794720397,-500.0,0.00014465,2]
[331858185,1720794720406,-523.01,0.00014465,2]
[331858186,1720794720416,-532.23,0.00014465,2]
[331858187,1720794720425,-659.11,0.00014465,2]
[331858188,1720794720434,-928.6,0.00014465,2]
[331858189,1720794720445,-500.0,0.00014465,2]
[331858190,1720794720454,-857.04,0.00014465,2]
[331858191,1720794720464,-536.84,0.00014465,2]
[331858192,1720794720473,-1012.71,0.00014465,2]
[331858193,1720794720484,-389.89165875,0.00014465,2]
[331858194,1720794720494,-500.0,0.00014465,2]
[331858195,1720794720503,-787.1,0.00014465,2]
[331858196,1720794720512,-500.0,0.00014465,2]
[331858197,1720794720522,-880.19,0.00014465,2]